bitfinex/quotes_SOLUSD_20250508
["timestamp","ask_amount","ask_price","bid_price","bid_amount"]
[1746725576547,18.64964886,159.81,159.78,29.96578633]
[1746725579350,24.90708082,159.81,159.78,29.96578633]
[1746725579676,18.64964886,159.81,159.78,29.96578633]
[1746725580368,136.4,159.82,159.8,29.96578633]
[1746725580677,136.4,159.82,159.81,29.96578633]
[1746725581058,136.4,159.87,159.81,29.96578633]
[1746725581266,192.36578633,159.87,159.83,29.96578633]
[1746725581655,18.64964886,159.84,159.78,6.25860558]
[1746725581854,48.61543519,159.84,159.78,6.25860558]
[1746725582281,18.64964886,159.84,159.8,29.96578633]
[1746725582482,18.64964886,159.84,159.81,29.96578633]
[1746725582779,136.4,159.83,159.81,29.96578633]
[1746725583586,136.4,159.83,159.77,6.25888237]
[1746725583587,142.65669469,159.83,159.8,29.96578633]
[1746725583759,136.4,159.83,159.8,29.96578633]
[1746725584082,136.4,159.83,159.82,29.96578633]
[1746725584681,44.64964886,159.87,159.82,29.96578633]
[1746725584682,50.90483656,159.87,159.82,29.96578633]
[1746725584883,50.90483656,159.87,159.76,81.56068633]
[1746725584884,29.96578633,159.85,159.77,6.2589973]
[1746725585185,18.64964886,159.86,159.76,31.56068633]
[1746725585186,29.96578633,159.83,159.79,29.96578633]
[1746725585555,6.25703916,159.82,159.79,29.96578633]
[1746725586460,172.62282549,159.82,159.78,29.96578633]
[1746725586779,172.62282549,159.82,159.79,29.96578633]
[1746725586780,142.65703916,159.82,159.79,29.96578633]
[1746725587773,142.65703916,159.82,159.78,29.96578633]
[1746725588385,48.61543519,159.81,159.76,1.5949]
[1746725588579,48.61543519,159.81,159.75,6.626]
[1746725588775,48.61543519,159.81,159.77,29.96578633]
[1746725589090,18.64964886,159.81,159.78,29.96578633]
[1746725589467,24.90720702,159.81,159.78,29.96578633]
[1746725590281,24.90720702,159.81,159.77,29.96578633]
[1746725590481,54.87299335,159.81,159.77,29.96578633]
[1746725590781,24.90720702,159.81,159.78,29.96578633]
[1746725590987,18.64964886,159.81,159.79,29.96578633]
[1746725592780,136.4,159.82,159.8,29.96578633]
[1746725593087,6.25680259,159.83,159.8,29.96578633]
[1746725593088,24.9063104,159.83,159.8,29.96578633]
[1746725593973,18.64964886,159.82,159.76,6.25935696]
[1746725594185,18.64964886,159.82,159.78,29.96578633]
[1746725594378,18.64964886,159.82,159.79,29.96578633]
[1746725595805,18.64964886,159.82,159.72,8.0304]
[1746725595806,18.64964886,159.8,159.72,8.0304]
[1746725595972,18.64964886,159.77,159.72,8.0304]
[1746725596169,18.64964886,159.75,159.71,29.96578633]
[1746725596386,48.61543519,159.75,159.7,29.96578633]
[1746725596705,18.64964886,159.73,159.7,29.96578633]
[1746725596909,26.14216157,159.78,159.64,6.26374659]
[1746725596910,48.61543519,159.72,159.64,6.26374659]
[1746725597066,48.61543519,159.72,159.67,29.96578633]
[1746725597265,48.61543519,159.72,159.63,14.30394992]
[1746725597683,48.61543519,159.72,159.67,29.96578633]
[1746725597902,54.87675081,159.72,159.67,29.96578633]
[1746725598277,18.64964886,159.7,159.66,29.96578633]
[1746725598914,18.64964886,159.7,159.64,6.26386924]
[1746725599084,48.61543519,159.7,159.65,29.96578633]
[1746725599389,48.61543519,159.7,159.63,8.0396]
[1746725599390,54.87735235,159.7,159.63,8.0396]
[1746725599577,54.87735235,159.7,159.65,29.96578633]
[1746725599770,18.64964886,159.68,159.64,29.96578633]
[1746725600275,18.64964886,159.68,159.61,26.0]
[1746725600593,18.64964886,159.68,159.59,14.49536473]
[1746725600796,166.36578633,159.67,159.62,29.96578633]
[1746725601103,166.36578633,159.67,159.59,14.49536473]
[1746725601104,6.26330953,159.66,159.6,6.26550381]
[1746725601399,18.64964886,159.65,159.62,29.96578633]
[1746725601766,185.01543519,159.64,159.55,7.7743]
[1746725601993,18.64964886,159.62,159.6,29.96578633]
[1746725605603,24.91456185,159.62,159.6,29.96578633]
[1746725605803,24.91456185,159.62,159.57,6.26671458]
[1746725605981,24.91456185,159.62,159.6,29.96578633]
[1746725606292,18.64964886,159.62,159.6,29.96578633]
[1746725606689,18.64964886,159.62,159.57,6.26671458]
[1746725606895,24.91464506,159.62,159.56,6.26723489]
[1746725607195,18.64964886,159.62,159.6,29.96578633]
[1746725607589,24.91466291,159.62,159.56,6.26723489]
[1746725607897,24.91466291,159.62,159.59,29.96578633]
[1746725608101,24.91466291,159.62,159.6,29.96578633]
[1746725608298,24.91466291,159.62,159.56,6.26723489]
[1746725608475,54.88044924,159.62,159.55,7.7743]
[1746725608796,18.64964886,159.6,159.57,29.96578633]
[1746725608972,24.91536339,159.6,159.57,29.96578633]
[1746725609381,191.28114972,159.6,159.56,29.96578633]
[1746725609581,0.14216157,159.59,159.51,7.9439]
[1746725609886,18.64964886,159.57,159.51,14.21302808]
[1746725610097,18.64964886,159.57,159.53,29.96578633]
[1746725610697,18.64964886,159.57,159.54,29.96578633]
[1746725611196,24.91653232,159.57,159.54,29.96578633]
[1746725611389,18.64964886,159.57,159.54,29.96578633]
[1746725611593,18.64964886,159.57,159.52,6.26877534]
[1746725611891,24.91660129,159.57,159.54,29.96578633]
[1746725612088,136.4,159.58,159.55,29.96578633]
[1746725612287,136.4,159.58,159.52,6.26877534]
[1746725612288,136.4,159.58,159.56,29.96578633]
[1746725613923,142.66650155,159.58,159.55,29.96578633]
[1746725614296,18.64964886,159.57,159.54,29.96578633]
[1746725614598,18.64964886,159.55,159.51,7.9439]
[1746725614804,18.64964886,159.55,159.53,29.96578633]
[1746725615811,24.91732681,159.55,159.51,1.6412]
[1746725616128,18.64964886,159.53,159.47,13.98923822]
[1746725616332,18.64964886,159.53,159.5,29.96578633]
[1746725616923,18.64964886,159.53,159.43,6.27234522]
[1746725616924,30.1079479,159.52,159.43,6.27234522]
[1746725617133,18.64964886,159.5,159.43,6.27234522]
[1746725617296,18.64964886,159.5,159.46,29.96578633]
[1746725618016,18.64964886,159.5,159.47,29.96578633]
[1746725618435,18.64964886,159.5,159.46,29.96578633]
[1746725619223,18.64964886,159.5,159.43,6.27234522]
[1746725619224,24.91927242,159.5,159.43,6.27234522]
[1746725619430,24.91927242,159.5,159.46,29.96578633]
[1746725619632,24.91927242,159.5,159.43,6.27234522]
[1746725619838,24.91927242,159.5,159.46,29.96578633]
[1746725620234,24.91927242,159.5,159.43,6.27234522]
[1746725620436,24.91927242,159.5,159.46,29.96578633]
[1746725620807,18.64964886,159.5,159.48,29.96578633]
[1746725621920,18.64964886,159.5,159.43,15.6807603]
[1746725622236,136.4,159.51,159.49,29.96578633]
[1746725622407,136.4,159.51,159.44,51.91761773]
[1746725622607,136.4,159.51,159.48,29.96578633]
[1746725622826,136.4,159.51,159.49,29.96578633]
[1746725623124,136.4,159.51,159.5,29.96578633]
[1746725623323,136.4,159.51,159.47,6.27041252]
[1746725623537,136.4,159.51,159.5,29.96578633]
[1746725623717,6.26812707,159.54,159.5,29.96578633]
[1746725623718,18.64964886,159.54,159.5,29.96578633]
[1746725623927,136.4,159.55,159.53,29.96578633]
[1746725624249,136.4,159.55,159.54,29.96578633]
[1746725624709,136.4,159.55,159.5,1.6042]
[1746725624904,142.6678538,159.55,159.5,1.6042]
[1746725625136,142.6678538,159.55,159.52,29.96578633]
[1746725625438,136.4,159.55,159.54,29.96578633]
[1746725626221,18.64964886,159.58,159.54,29.96578633]
[1746725626440,18.64964886,159.58,159.55,29.96578633]
[1746725626644,142.66580142,159.6,159.56,29.96578633]
[1746725626827,136.4,159.6,159.59,29.96578633]
[1746725627844,136.4,159.6,159.56,6.26712296]
[1746725628062,136.4,159.6,159.59,29.96578633]
[1746725628347,11.71340716,159.61,159.59,29.96578633]
[1746725628650,11.71340716,159.61,159.6,29.96578633]
[1746725629849,18.64964886,159.63,159.6,29.96578633]
[1746725630017,18.64964886,159.63,159.58,26.0]
[1746725630224,18.64964886,159.63,159.6,29.96578633]
[1746725630431,18.64964886,159.63,159.61,29.96578633]
[1746725630727,18.64964886,159.63,159.57,1.5706]
[1746725630921,18.64964886,159.61,159.58,29.96578633]
[1746725632241,18.64964886,159.63,159.6,29.96578633]
[1746725632445,18.64964886,159.63,159.61,29.96578633]
[1746725632747,18.64964886,159.63,159.6,29.96578633]
[1746725633127,24.91434625,159.63,159.59,29.96578633]
[1746725633554,18.64964886,159.63,159.6,29.96578633]
[1746725633918,136.4,159.64,159.6,29.96578633]
[1746725634123,136.4,159.64,159.56,21.93532212]
[1746725634124,136.4,159.64,159.63,29.96578633]
[1746725635325,18.64964886,159.67,159.63,36.23025662]
[1746725635526,18.64964886,159.67,159.66,29.96578633]
[1746725636026,18.64964886,159.69,159.66,29.96578633]
[1746725636245,18.64964886,159.67,159.64,29.96578633]
[1746725636549,18.64964886,159.69,159.66,29.96578633]
[1746725636773,18.64964886,159.69,159.68,29.96578633]
[1746725637124,18.64964886,159.69,159.61,32.26516834]
[1746725637125,6.26237831,159.69,159.67,29.96578633]
[1746725637749,24.91202717,159.69,159.61,32.26516834]
[1746725637947,24.91202717,159.69,159.65,29.96578633]
[1746725639027,24.91202717,159.69,159.66,29.96578633]
[1746725641543,48.61543519,159.68,159.64,29.96578633]
[1746725642051,18.64964886,159.66,159.63,29.96578633]
[1746725642350,6.26370184,159.65,159.62,29.96578633]
[1746725643457,18.64964886,159.64,159.6,1.6606]
[1746725643662,18.64964886,159.64,159.61,29.96578633]
[1746725644235,18.64964886,159.62,159.56,6.26718567]
[1746725644555,18.64964886,159.62,159.58,29.96578633]
[1746725644556,48.61543519,159.62,159.58,29.96578633]
[1746725645442,6.26527159,159.61,159.58,29.96578633]
[1746725646162,6.26527159,159.61,159.55,34.1645]
[1746725646341,6.26527159,159.61,159.59,29.96578633]
[1746725646537,18.64964886,159.6,159.55,34.1645]
[1746725646863,18.64964886,159.6,159.58,29.96578633]
[1746725647241,18.64964886,159.6,159.57,29.96578633]
[1746725647559,18.64964886,159.6,159.55,34.1645]
[1746725647740,24.91546896,159.6,159.57,29.96578633]
[1746725648243,54.88125529,159.6,159.52,36.23423701]
[1746725648447,54.88125529,159.6,159.56,29.96578633]
[1746725650459,54.88125529,159.6,159.52,26.0]
[1746725650460,18.64964886,159.58,159.52,26.0]
[1746725650634,48.61543519,159.58,159.54,29.96578633]
[1746725651140,18.64964886,159.58,159.54,29.96578633]
[1746725651336,18.64964886,159.58,159.55,29.96578633]
[1746725651337,6.26684213,159.57,159.55,29.96578633]
[1746725652366,18.64964886,159.56,159.51,7.8739]
[1746725652666,155.04964886,159.56,159.53,29.96578633]
[1746725652839,155.04964886,159.56,159.55,29.96578633]
[1746725653239,155.04964886,159.56,159.54,29.96578633]
[1746725653643,6.2676277,159.55,159.54,29.96578633]
[1746725654370,155.04964886,159.56,159.54,29.96578633]
[1746725654667,155.04964886,159.56,159.51,14.14298757]
[1746725654668,161.31688375,159.56,159.55,29.96578633]
[1746725655166,155.04964886,159.56,159.55,29.96578633]
[1746725656669,161.31688375,159.56,159.55,29.96578633]
[1746725657370,155.04964886,159.56,159.55,29.96578633]
[1746725657971,161.31688375,159.56,159.55,29.96578633]
[1746725658270,161.31688375,159.56,159.53,29.96578633]
[1746725658462,161.31688375,159.56,159.51,7.8739]
[1746725658667,18.64964886,159.54,159.53,29.96578633]
[1746725659159,18.64964886,159.54,159.5,26.0]
[1746725659365,18.64964886,159.54,159.52,29.96578633]
[1746725659565,18.64964886,159.54,159.48,6.2702508]
[1746725659866,18.64964886,159.54,159.53,29.96578633]
[1746725660451,24.91766941,159.54,159.53,29.96578633]
[1746725661373,24.91766941,159.54,159.52,29.96578633]
[1746725661784,136.4,159.55,159.53,29.96578633]
[1746725661959,136.4,159.55,159.48,6.27037873]
[1746725662164,136.4,159.55,159.54,29.96578633]
[1746725665780,142.6676277,159.55,159.54,29.96578633]
[1746725666072,161.31727656,159.55,159.54,29.96578633]
[1746725666577,161.31727656,159.55,159.53,29.96578633]
[1746725666876,161.31727656,159.55,159.51,29.96578633]
[1746725666877,155.04964886,159.54,159.51,29.96578633]
[1746725667058,18.64964886,159.52,159.51,29.96578633]
[1746725667257,18.64964886,159.52,159.5,29.96578633]
[1746725667558,18.64964886,159.52,159.49,29.96578633]
[1746725667868,6.26919942,159.51,159.49,29.96578633]
[1746725668273,24.91884828,159.51,159.5,29.96578633]
[1746725668674,18.64964886,159.51,159.5,29.96578633]
[1746725669397,142.66855209,159.53,159.5,29.96578633]
[1746725669681,155.04964886,159.53,159.52,29.96578633]
[1746725669883,136.4,159.53,159.52,29.96578633]
[1746725673984,136.4,159.53,159.48,32.2702345]
[1746725674161,136.4,159.53,159.52,29.96578633]
[1746725675699,136.4,159.53,159.5,29.96578633]
[1746725675998,6.26919942,159.51,159.47,26.0]
[1746725676170,6.26919942,159.51,159.49,29.96578633]
[1746725676487,24.91857226,159.52,159.49,29.96578633]
[1746725677266,24.91857226,159.52,159.5,29.96578633]
[1746725677483,24.91857226,159.52,159.47,6.27067425]
[1746725677689,24.91857226,159.52,159.49,29.96578633]
[1746725678490,24.91857226,159.52,159.5,29.96578633]
[1746725678986,24.91857226,159.52,159.49,29.96578633]
[1746725679165,24.91857226,159.52,159.5,29.96578633]
[1746725679978,24.91857226,159.52,159.45,1.5437]
[1746725680183,54.88435859,159.52,159.47,29.96578633]
[1746725680466,18.64964886,159.49,159.44,6.0474]
[1746725680696,18.64964886,159.49,159.46,29.96578633]
[1746725680870,18.64964886,159.49,159.47,29.96578633]
[1746725681273,18.79181043,159.51,159.47,29.96578633]
[1746725681481,18.79181043,159.51,159.48,29.96578633]
[1746725681825,18.64964886,159.49,159.48,29.96578633]
[1746725681974,24.91858583,159.52,159.48,29.96578633]
[1746725682175,24.91858583,159.52,159.44,36.01318633]
[1746725682176,24.91858583,159.52,159.49,29.96578633]
[1746725683373,24.91858583,159.52,159.5,29.96578633]
[1746725683569,24.91858583,159.52,159.49,29.96578633]
[1746725683875,54.88437216,159.52,159.44,6.0474]
[1746725684070,54.88437216,159.52,159.47,29.96578633]
[1746725684269,54.88437216,159.52,159.46,29.96578633]
[1746725684270,18.64964886,159.5,159.46,29.96578633]
[1746725684671,18.64964886,159.5,159.47,29.96578633]
[1746725685597,18.64964886,159.49,159.47,29.96578633]
[1746725685800,136.4,159.5,159.48,29.96578633]
[1746725686003,136.4,159.5,159.49,29.96578633]
[1746725687377,142.66960306,159.5,159.48,29.96578633]
[1746725687577,142.66960306,159.5,159.45,6.27150332]
[1746725687794,136.4,159.5,159.48,29.96578633]
[1746725689610,136.4,159.5,159.49,29.96578633]
[1746725689813,136.4,159.5,159.44,36.01318633]
[1746725689982,136.4,159.5,159.48,29.96578633]
[1746725690606,136.4,159.5,159.44,12.31925524]
[1746725690607,18.64964886,159.49,159.44,12.31925524]
[1746725690881,18.64964886,159.49,159.46,29.96578633]
[1746725691304,18.64964886,159.49,159.44,12.31925524]
[1746725691305,18.64964886,159.49,159.47,29.96578633]
[1746725692012,136.4,159.5,159.48,29.96578633]
[1746725692203,136.4,159.5,159.49,29.96578633]
[1746725692885,18.64964886,159.53,159.49,29.96578633]
[1746725693084,18.64964886,159.53,159.45,21.95045468]
[1746725693085,18.64964886,159.53,159.5,29.96578633]
[1746725694009,24.91806441,159.53,159.5,29.96578633]
[1746725694512,24.91806441,159.53,159.48,6.27029762]
[1746725694818,54.88385074,159.53,159.45,26.0]
[1746725694986,54.88385074,159.53,159.48,29.96578633]
[1746725695305,0.14216157,159.52,159.45,26.0]
[1746725695510,30.1079479,159.52,159.48,29.96578633]
[1746725696411,18.64964886,159.5,159.45,32.27132921]
[1746725696587,18.64964886,159.5,159.47,29.96578633]
[1746725698298,24.91939635,159.5,159.47,29.96578633]
[1746725700317,142.6692401,159.51,159.49,29.96578633]
[1746725700693,142.6692401,159.51,159.5,29.96578633]
[1746725700694,136.4,159.51,159.5,29.96578633]
[1746725700992,18.64964886,159.5,159.44,6.0474]
[1746725701185,18.64964886,159.5,159.47,29.96578633]
[1746725701384,136.4,159.51,159.48,29.96578633]
[1746725701705,18.64964886,159.53,159.5,29.96578633]
[1746725702206,54.88395691,159.53,159.46,6.27106833]
[1746725702513,29.96578633,159.52,159.48,29.96578633]
[1746725703009,54.88395691,159.53,159.48,29.96578633]
[1746725703710,70.55499057,159.53,159.48,29.96578633]
[1746725703917,18.64964886,159.51,159.47,29.96578633]
[1746725704787,6.26959247,159.5,159.48,29.96578633]
[1746725706908,6.26959247,159.5,159.49,29.96578633]
[1746725707088,24.91901596,159.51,159.49,29.96578633]
[1746725707890,24.91901596,159.51,159.48,18.87742929]
[1746725708723,24.91901596,159.51,159.45,6.27143068]
[1746725708895,24.91901596,159.51,159.48,18.87742929]
[1746725710810,24.91901596,159.51,159.44,24.92482929]
[1746725710811,142.66907575,159.52,159.5,18.87742929]
[1746725711017,142.66907575,159.52,159.51,18.87742929]
[1746725711018,136.4,159.52,159.51,18.87742929]
[1746725712011,136.4,159.52,159.47,7.83179865]
[1746725712203,142.66881473,159.52,159.5,18.87742929]
[1746725712917,136.4,159.52,159.5,18.87742929]
[1746725713095,136.4,159.52,159.51,18.87742929]
[1746725719217,142.66883259,159.52,159.47,7.83201736]
[1746725719400,136.4,159.52,159.51,18.87742929]
[1746725721719,18.64964886,159.51,159.44,31.19671728]
[1746725722029,18.64964886,159.49,159.45,18.87742929]
[1746725722631,18.64964886,159.47,159.43,1.6049]
[1746725722925,18.64964886,159.47,159.4,12.70749232]
[1746725723102,18.64964886,159.47,159.43,18.87742929]
[1746725723304,37.52707815,159.47,159.43,18.87742929]
[1746725723508,18.64964886,159.45,159.42,18.87742929]
[1746725723734,18.87742929,159.43,159.36,12.4500988]
[1746725723908,18.87742929,159.42,159.36,6.1751]
[1746725724225,18.64964886,159.41,159.36,6.1751]
[1746725724417,18.64964886,159.41,159.38,18.87742929]
[1746725724613,18.87742929,159.42,159.38,18.87742929]
[1746725724806,162.54216157,159.45,159.39,18.87742929]
[1746725724807,18.64964886,159.43,159.39,18.87742929]
[1746725725007,37.52707815,159.43,159.39,18.87742929]
[1746725725210,37.52707815,159.43,159.36,12.45003339]
[1746725725408,18.64964886,159.44,159.39,18.87742929]
[1746725725609,18.64964886,159.44,159.4,18.87742929]
[1746725725805,18.64964886,159.44,159.41,18.87742929]
[1746725726535,43.79907013,159.44,159.37,6.27470665]
[1746725726741,18.87742929,159.43,159.39,18.87742929]
[1746725727238,18.87742929,159.43,159.36,12.45014046]
[1746725727239,24.92164084,159.44,159.41,18.87742929]
[1746725727441,43.79907013,159.44,159.36,12.45014046]
[1746725727617,43.79907013,159.44,159.39,18.87742929]
[1746725728024,43.79907013,159.44,159.4,18.87742929]
[1746725728225,18.87742929,159.43,159.36,12.45014046]
[1746725728523,18.87742929,159.4,159.34,6.27562157]
[1746725728724,18.64964886,159.39,159.28,6.27825213]
[1746725728940,18.64964886,159.39,159.33,18.87742929]
[1746725729240,18.64964886,159.39,159.29,26.0]
[1746725729241,18.64964886,159.37,159.34,18.87742929]
[1746725729413,37.52707815,159.39,159.34,18.87742929]
[1746725729614,37.52707815,159.39,159.31,6.27669472]
[1746725729615,18.64964886,159.37,159.31,6.27669472]
[1746725729824,18.64964886,159.37,159.34,18.87742929]
[1746725730222,32.27399746,159.39,159.36,18.87742929]
[1746725730423,6.27399746,159.39,159.37,18.87742929]
[1746725730638,32.27280456,159.42,159.38,18.87742929]
[1746725730850,24.92212588,159.43,159.4,18.87742929]
[1746725731022,24.92212588,159.43,159.36,18.87742929]
[1746725731342,18.64964886,159.43,159.42,18.87742929]
[1746725731540,24.9213195,159.45,159.42,18.87742929]
[1746725731738,18.64964886,159.45,159.43,18.87742929]
[1746725732039,18.64964886,159.45,159.4,6.2734012]
[1746725732040,22.29129653,159.46,159.44,30.22779645]
[1746725732221,22.29129653,159.46,159.4,6.2734012]
[1746725732222,17.9948109,159.47,159.45,30.22779645]
[1746725732419,18.64964886,159.46,159.44,30.22779645]
[1746725732654,18.64964886,159.46,159.4,6.2734012]
[1746725732853,18.64964886,159.46,159.44,30.22779645]
[1746725733643,6.27155848,159.45,159.4,6.2734012]
[1746725733838,6.27155848,159.45,159.43,30.22779645]
[1746725734017,11.72394206,159.47,159.44,30.22779645]
[1746725734223,11.72394206,159.47,159.46,30.22779645]
[1746725734421,6.27006982,159.49,159.46,30.22779645]
[1746725734615,6.27006982,159.49,159.41,8.0451]
[1746725734846,6.27006982,159.49,159.46,30.22779645]
[1746725736019,6.27006982,159.49,159.42,6.2725928]
[1746725736416,6.27006982,159.49,159.46,30.22779645]
[1746725737828,6.27006982,159.49,159.41,14.31808647]
[1746725738023,36.49786627,159.49,159.45,30.22779645]
[1746725738242,6.27006982,159.49,159.45,30.22779645]
[1746725738443,6.27006982,159.49,159.46,30.22779645]
[1746725739658,6.27006982,159.49,159.41,8.0451]
[1746725739659,18.64964886,159.48,159.41,8.0451]
[1746725739834,48.87744531,159.48,159.44,30.22779645]
[1746725740549,30.22779645,159.47,159.39,26.0]
[1746725740856,30.22779645,159.47,159.42,30.22779645]
[1746725740857,18.64964886,159.45,159.42,30.22779645]
[1746725741227,18.64964886,159.45,159.43,30.22779645]
[1746725741562,142.6712826,159.46,159.44,30.22779645]
[1746725743363,142.6712826,159.46,159.45,30.22779645]
[1746725743364,136.4,159.46,159.45,30.22779645]
[1746725743730,6.27050225,159.48,159.39,71.9587176]
[1746725743929,6.27050225,159.48,159.46,30.22779645]
[1746725744232,6.27050225,159.48,159.47,30.22779645]
[1746725744433,6.27050225,159.48,159.46,30.22779645]
[1746725745231,6.27050225,159.48,159.47,30.22779645]
[1746725746043,6.27050225,159.48,159.39,65.68479829]
[1746725746443,6.27050225,159.48,159.45,30.22779645]
[1746725746640,6.27050225,159.48,159.46,30.22779645]
[1746725747059,6.27050225,159.48,159.39,65.68479829]
[1746725747231,24.92015111,159.48,159.44,30.22779645]
[1746725747437,48.87744531,159.47,159.42,30.22779645]
[1746725748152,48.87744531,159.47,159.43,30.22779645]
[1746725748360,48.87744531,159.47,159.42,30.22779645]
[1746725748738,6.27116518,159.46,159.43,30.22779645]
[1746725749549,6.27116518,159.46,159.44,30.22779645]
[1746725749735,6.27116518,159.46,159.43,30.22779645]
[1746725753243,6.27116518,159.46,159.42,30.22779645]
[1746725753440,18.64964886,159.45,159.42,30.22779645]
[1746725753646,48.87744531,159.45,159.38,26.0]
[1746725753949,37.54656823,159.45,159.41,18.89691937]
[1746725754248,37.54656823,159.45,159.4,18.89691937]
[1746725754648,142.67116518,159.46,159.43,18.89691937]
[1746725754834,142.67116518,159.46,159.38,6.27428446]
[1746725754835,142.67116518,159.46,159.44,18.89691937]
[1746725755039,142.67116518,159.46,159.43,18.89691937]
[1746725755260,43.81846597,159.45,159.41,18.89691937]
[1746725755472,161.3215466,159.45,159.41,18.89691937]
[1746725756888,161.3215466,159.45,159.42,18.89691937]
[1746725757450,161.3215466,159.45,159.38,6.27429326]
[1746725757646,161.3215466,159.45,159.42,18.89691937]
[1746725759061,18.89691937,159.43,159.37,14.30338717]
[1746725759260,18.64964886,159.43,159.37,8.0288]
[1746725759750,6.27273867,159.42,159.4,18.89691937]
[1746725760070,136.4,159.45,159.41,18.89691937]
[1746725760252,18.64964886,159.44,159.42,18.89691937]
[1746725760867,142.67168594,159.45,159.43,18.89691937]
[1746725761073,18.64964886,159.44,159.42,18.89691937]
[1746725761858,24.92198841,159.44,159.42,18.89691937]
[1746725762174,24.92165264,159.44,159.42,18.89691937]
[1746725762558,136.4,159.45,159.43,18.89691937]
[1746725762766,136.4,159.45,159.44,18.89691937]
[1746725764275,6.27044197,159.48,159.39,41.68475317]
[1746725764577,6.27044197,159.48,159.46,18.89691937]
[1746725765961,6.27044197,159.48,159.45,18.89691937]
[1746725767075,6.27044197,159.48,159.46,18.89691937]
[1746725767269,6.27044197,159.48,159.45,18.89691937]
[1746725767781,173.04214381,159.49,159.46,18.89691937]
[1746725767983,173.04214381,159.49,159.47,18.89691937]
[1746725768481,148.12246925,159.49,159.48,18.89691937]
[1746725769175,11.72246925,159.49,159.48,18.89691937]
[1746725769380,6.26892439,159.52,159.48,18.89691937]
[1746725769584,6.26892439,159.52,159.49,18.89691937]
[1746725769883,6.26892439,159.52,159.5,18.89691937]
[1746725770892,136.4,159.53,159.51,18.89691937]
[1746725771090,136.4,159.53,159.52,18.89691937]
[1746725771400,6.26723489,159.56,159.52,18.89691937]
[1746725771567,6.26723489,159.56,159.53,18.89691937]
[1746725771989,6.26723489,159.56,159.54,18.89691937]
[1746725772170,6.26723489,159.56,159.49,1.6518]
[1746725772372,6.26723489,159.56,159.52,18.89691937]
[1746725773101,18.64964886,159.55,159.49,1.6518]
[1746725773381,18.89691937,159.54,159.49,18.89691937]
[1746725773886,18.64964886,159.55,159.5,18.89691937]
[1746725774083,37.54656823,159.55,159.5,18.89691937]
[1746725774289,6.26802055,159.54,159.51,18.89691937]
[1746725774465,6.26723489,159.56,159.47,6.27062378]
[1746725774966,18.89691937,159.54,159.45,1.6059]
[1746725775293,18.89691937,159.54,159.49,18.89691937]
[1746725775765,18.89691937,159.54,159.45,7.87735264]
[1746725775964,18.64964886,159.52,159.45,7.87735264]
[1746725776162,18.64964886,159.52,159.48,18.89691937]
[1746725776386,136.4,159.53,159.51,18.89691937]
[1746725777665,142.66852624,159.53,159.5,18.89691937]
[1746725778882,18.64964886,159.52,159.45,1.6059]
[1746725779081,18.89691937,159.49,159.45,18.89691937]
[1746725779480,6.27077193,159.47,159.44,18.89691937]
[1746725779989,6.27077193,159.47,159.41,1.6026]
[1746725780171,6.27077193,159.47,159.43,18.89691937]
[1746725780374,18.64964886,159.46,159.43,18.89691937]
[1746725780574,173.94656823,159.46,159.38,6.27416725]
[1746725780884,173.94656823,159.46,159.41,18.89691937]
[1746725781071,19.03908094,159.45,159.4,18.89691937]
[1746725781387,19.03908094,159.45,159.41,18.89691937]
[1746725781575,18.64964886,159.43,159.41,18.89691937]
[1746725781769,18.64964886,159.43,159.41,30.23387577]
[1746725782177,142.67195183,159.44,159.41,30.23387577]
[1746725782371,136.4,159.44,159.42,30.23387577]
[1746725782691,136.4,159.44,159.41,30.23387577]
[1746725783067,18.64964886,159.43,159.4,30.23387577]
[1746725783695,6.27273867,159.42,159.37,7.92757446]
[1746725783991,6.27273867,159.42,159.4,30.23387577]
[1746725784571,6.27273867,159.42,159.37,7.92757446]
[1746725784871,6.27273867,159.42,159.4,30.23387577]
[1746725785272,6.27273867,159.42,159.37,1.653]
[1746725785487,6.27273867,159.42,159.4,30.23387577]
[1746725786693,6.27273867,159.42,159.37,1.653]
[1746725787000,6.27273867,159.42,159.36,6.1055]
[1746725787001,18.64964886,159.41,159.36,6.1055]
[1746725787172,18.64964886,159.41,159.38,30.23387577]
[1746725787867,18.64964886,159.41,159.39,30.23387577]
[1746725788099,18.64964886,159.41,159.4,30.23387577]
[1746725788272,18.64964886,159.41,159.36,42.61425829]
[1746725788273,18.64964886,159.41,159.39,30.23387577]
[1746725789988,24.92278103,159.41,159.39,30.23387577]
[1746725790292,24.92278103,159.41,159.36,6.1055]
[1746725790474,142.67289015,159.42,159.4,30.23387577]
[1746725790667,142.67289015,159.42,159.41,30.23387577]
[1746725790668,136.4,159.42,159.41,30.23387577]
[1746725792497,142.67280607,159.42,159.36,42.61416521]
[1746725792689,142.67280607,159.42,159.4,30.23387577]
[1746725792891,136.4,159.42,159.41,30.23387577]
[1746725794693,36.64663386,159.45,159.41,30.23387577]
[1746725794896,36.64663386,159.45,159.42,30.23387577]